bitfinex/quotes_BTCUSD_20250224
["timestamp","ask_amount","ask_price","bid_price","bid_amount"]
[1740437288650,0.36771843,93005.0,93004.0,0.00043271]
[1740437289539,0.36771843,93005.0,92988.0,0.24168]
[1740437289752,0.38565498,93005.0,92990.0,0.08594619]
[1740437290004,0.23245495,93005.0,92990.0,0.08594619]
[1740437290228,0.23245495,93005.0,93004.0,0.0008493]
[1740437290867,0.21495157,93005.0,93004.0,0.0008493]
[1740437292180,0.22168631,93005.0,93004.0,0.0008493]
[1740437292382,0.25402131,93005.0,93004.0,0.0008493]
[1740437294240,0.40402131,93005.0,93004.0,0.0008493]
[1740437294683,0.56406431,93005.0,93004.0,0.0008493]
[1740437294916,0.15,93004.0,92964.0,0.215136]
[1740437295148,0.15,93002.0,92966.0,0.24737868]
[1740437295385,0.2145184,93003.0,92966.0,0.30116268]
[1740437295598,0.2145184,93001.0,92966.0,0.08603168]
[1740437295825,0.2145184,93001.0,92966.0,0.24737968]
[1740437296054,0.23203098,93001.0,92966.0,0.08603168]
[1740437296775,0.2278784,93000.0,92969.0,0.161343]
[1740437296970,0.2278784,93000.0,92970.0,0.16134]
[1740437297136,0.2145184,92999.0,92967.0,0.215129]
[1740437297366,0.2145184,92999.0,92986.0,0.08594619]
[1740437298068,0.2145184,92999.0,92997.0,0.08594619]
[1740437299565,0.01751258,92998.0,92997.0,0.08594619]
[1740437299776,0.02053239,92998.0,92997.0,0.08594619]
[1740437301546,0.05287039,92998.0,92997.0,0.08594619]
[1740437301992,0.26738879,92998.0,92997.0,0.08594619]
[1740437303157,0.26738879,92998.0,92986.0,0.08594619]
[1740437303800,0.26436898,92998.0,92986.0,0.08594619]
[1740437304200,0.00302115,92997.0,92986.0,0.08594619]
[1740437304585,0.21753955,92997.0,92986.0,0.08594619]
[1740437304795,0.21753955,92997.0,92986.0,0.06169887]
[1740437305016,0.01751258,92996.0,92986.0,0.06169887]
[1740437305241,0.00302219,92995.0,92986.0,0.06169887]
[1740437305462,0.00302219,92995.0,92986.0,0.22301187]
[1740437305681,0.00302219,92995.0,92986.0,0.22301287]
[1740437305900,0.00302219,92995.0,92986.0,0.06169887]
[1740437306333,0.01751258,92994.0,92987.0,0.161312]
[1740437306538,0.00302203,92993.0,92987.0,0.161312]
[1740437307386,0.00302203,92993.0,92986.0,0.06169887]
[1740437307583,0.00302203,92993.0,92986.0,0.27678287]
[1740437308234,0.01751258,92992.0,92987.0,0.161312]
[1740437308438,0.01751258,92992.0,92986.0,0.06169887]
[1740437308638,0.01751258,92992.0,92988.0,0.16131]
[1740437308865,0.01751258,92992.0,92987.0,0.161312]
[1740437309363,0.01751258,92992.0,92986.0,0.06169887]
[1740437310000,0.01751258,92991.0,92986.0,0.06169887]
[1740437310215,0.01751258,92991.0,92985.0,0.24184]
[1740437310617,0.032338,92990.0,92985.0,0.24184]
[1740437311038,0.00302218,92989.0,92985.0,0.24184]
[1740437311248,0.02053476,92989.0,92985.0,0.24184]
[1740437311703,0.472546,92988.0,92985.0,0.20816057]
[1740437311942,0.45633283,92987.0,92985.0,0.20816057]
[1740437312162,0.520102,92986.0,92977.0,0.00085]
[1740437312398,0.02,92983.0,92977.0,0.00085]
[1740437312629,0.7484854,92982.0,92977.0,0.00085]
[1740437312850,0.15,92980.0,92977.0,0.00085]
[1740437313090,0.15,92978.0,92977.0,0.00085]
[1740437313310,0.620018,92978.0,92977.0,0.00085]
[1740437313448,0.54674841,92978.0,92977.0,0.00085]
[1740437313874,0.161331,92977.0,92948.0,0.0799]
[1740437314079,0.15298679,92976.0,92948.0,0.0799]
[1740437314295,0.15,92974.0,92948.0,0.0799]
[1740437314513,0.15,92972.0,92948.0,0.0799]
[1740437314726,0.15,92970.0,92948.0,0.0799]
[1740437314929,0.55908979,92971.0,92948.0,0.0799]
[1740437314930,0.15,92968.0,92948.0,0.0799]
[1740437315132,0.00298679,92967.0,92948.0,0.0799]
[1740437315330,0.2145184,92966.0,92948.0,0.0799]
[1740437315887,0.31344,92965.0,92948.0,0.0799]
[1740437316085,0.31642679,92965.0,92948.0,0.0799]
[1740437316306,0.4581694,92964.0,92948.0,0.0799]
[1740437316530,0.2145184,92964.0,92942.0,0.24184]
[1740437316793,0.47289519,92964.0,92942.0,0.24184]
[1740437317231,0.49040777,92964.0,92942.0,0.24184]
[1740437317702,0.69175977,92964.0,92942.0,0.24184]
[1740437317928,0.43051606,92964.0,92942.0,0.24184]
[1740437318183,0.39754337,92964.0,92942.0,0.24184]
[1740437318405,0.43049827,92964.0,92942.0,0.24184]
[1740437318839,0.75699827,92964.0,92942.0,0.24184]
[1740437319285,0.73699827,92964.0,92942.0,0.24184]
[1740437319509,0.75699827,92964.0,92942.0,0.24184]
[1740437319704,0.02,92944.0,92942.0,0.24184]
[1740437319923,3.566413,92943.0,92942.0,0.24184]
[1740437320144,3.79917472,92943.0,92942.0,0.24184]
[1740437320813,3.77536372,92943.0,92942.0,0.24184]
[1740437321023,3.67711635,92943.0,92942.0,0.24184]
[1740437321239,3.62563035,92943.0,92942.0,0.24184]
[1740437321686,0.02,92935.0,92933.0,18.99173305]
[1740437321937,2.063298,92934.0,92933.0,18.99173305]
[1740437322207,2.14991,92934.0,92933.0,18.99173305]
[1740437322404,2.124871,92934.0,92933.0,18.99173305]
[1740437323207,2.17193291,92934.0,92933.0,18.99173305]
[1740437323606,0.39597849,92934.0,92933.0,18.99173305]
[1740437323806,4.53860749,92934.0,92933.0,18.99173305]
[1740437324098,3.56105381,92934.0,92933.0,18.99173305]
[1740437324281,3.44283038,92934.0,92933.0,18.99173305]
[1740437324514,2.13493438,92934.0,92933.0,18.99173305]
[1740437324742,2.13199249,92934.0,92933.0,18.99173305]
[1740437324978,2.16436549,92934.0,92933.0,18.99173305]
[1740437325323,2.21783489,92934.0,92933.0,18.99173305]
[1740437325541,1.88122957,92934.0,92933.0,18.99173305]
[1740437325735,1.70183157,92934.0,92933.0,18.99173305]
[1740437326189,1.71519157,92934.0,92933.0,18.99173305]
[1740437326413,1.69498449,92934.0,92933.0,18.99173305]
[1740437327122,1.69498449,92934.0,92933.0,18.95148606]
[1740437327248,1.72824681,92934.0,92933.0,18.95148606]
[1740437327618,2.05474681,92934.0,92933.0,18.95148606]
[1740437328531,2.02148449,92934.0,92933.0,18.95148606]
[1740437328742,2.05474681,92934.0,92933.0,18.95148606]
[1740437328954,2.02148449,92934.0,92933.0,18.95148606]
[1740437329868,2.05474681,92934.0,92933.0,18.95148606]
[1740437330082,2.02148449,92934.0,92933.0,18.95148606]
[1740437330522,2.04148449,92934.0,92933.0,18.95148606]
[1740437331866,1.42360458,92934.0,92933.0,18.94548606]
[1740437332124,1.1033334,92934.0,92933.0,18.94548606]
[1740437332338,0.78248856,92934.0,92933.0,18.94548606]
[1740437332559,0.64439956,92934.0,92933.0,18.94548606]
[1740437332999,0.53448656,92934.0,92933.0,18.94548606]
[1740437333467,0.38448656,92934.0,92933.0,18.94548606]
[1740437334114,0.37112656,92934.0,92933.0,18.94548606]
[1740437334337,0.50211356,92934.0,92933.0,18.94548606]
[1740437334536,0.35211356,92934.0,92933.0,18.94548606]
[1740437335472,3.47552856,92934.0,92933.0,18.94548606]
[1740437335813,3.47295398,92934.0,92933.0,18.94548606]
[1740437336023,3.32295398,92934.0,92933.0,18.94548606]
[1740437336235,3.15506698,92934.0,92933.0,18.94548606]
[1740437336441,2.48763698,92934.0,92933.0,18.94548606]
[1740437336659,2.47131916,92934.0,92933.0,18.94548606]
[1740437337300,2.46053374,92934.0,92933.0,18.94548606]
[1740437337720,2.13403374,92934.0,92933.0,18.94548606]
[1740437337942,2.12088074,92934.0,92933.0,18.94510206]
[1740437338825,2.27038074,92934.0,92933.0,18.94510206]
[1740437339237,2.17634474,92934.0,92933.0,18.94510206]
[1740437339911,2.12960274,92934.0,92933.0,18.94510206]
[1740437340366,2.13130394,92934.0,92933.0,18.94510206]
[1740437341530,0.76888394,92934.0,92933.0,18.94510206]
[1740437341757,0.16793594,92934.0,92933.0,18.94510206]
[1740437342424,0.17871944,92934.0,92933.0,18.94510206]
[1740437344273,0.30059744,92934.0,92933.0,18.94510206]
[1740437346268,0.30059744,92934.0,92933.0,18.94410206]
[1740437346908,0.30611807,92934.0,92933.0,18.94410206]
[1740437347333,0.31943807,92934.0,92933.0,18.94410206]
[1740437348244,0.64593807,92934.0,92933.0,18.94410206]
[1740437349149,0.80734207,92934.0,92933.0,18.94410206]
[1740437349366,0.83970907,92934.0,92933.0,18.94410206]
[1740437349592,0.87264308,92934.0,92933.0,18.94410206]
[1740437349849,1.11264308,92934.0,92933.0,18.94410206]
[1740437350077,1.11264308,92934.0,92933.0,18.90541077]
[1740437350313,1.14634499,92934.0,92933.0,18.90541077]
[1740437351152,1.22304499,92934.0,92933.0,18.90541077]
[1740437351390,1.25630731,92934.0,92933.0,18.90541077]
[1740437352279,1.13442931,92934.0,92933.0,18.86172713]
[1740437352496,4.66519731,92934.0,92933.0,18.86172713]
[1740437352706,4.71278742,92934.0,92933.0,18.86172713]
[1740437352938,4.44956542,92934.0,92933.0,18.86172713]
[1740437353166,4.41659342,92934.0,92933.0,18.86172713]
[1740437353385,4.43681249,92934.0,92933.0,18.86172713]
[1740437353617,4.43129186,92934.0,92933.0,18.85621313]
[1740437354595,4.35295386,92934.0,92933.0,18.85621313]
[1740437354826,1.15748156,92934.0,92933.0,17.43756913]
[1740437355285,3.40825345,92934.0,92933.0,17.39770291]
[1740437355481,3.09347545,92934.0,92933.0,17.39470291]
[1740437355710,3.10959786,92934.0,92933.0,17.39470291]
[1740437355927,1.15744886,92934.0,92933.0,17.39470291]
[1740437356143,4.43091586,92934.0,92933.0,17.29336709]
[1740437356365,4.08837145,92934.0,92933.0,12.45399225]
[1740437356594,4.09117386,92934.0,92933.0,9.31342732]
[1740437356822,4.11767448,92934.0,92933.0,7.58382387]
[1740437357055,3.63771515,92934.0,92933.0,6.40174821]
[1740437357286,1.17596022,92934.0,92933.0,5.60803772]
[1740437357534,2.26326022,92934.0,92933.0,2.94211587]
[1740437357769,2.37636022,92934.0,92933.0,2.33874254]
[1740437357997,2.26944823,92934.0,92933.0,1.06247944]
[1740437358226,2.26944823,92934.0,92933.0,0.26736334]
[1740437358512,2.26944823,92934.0,92922.0,0.0021433]
[1740437358513,0.80457419,92924.0,92922.0,0.0021433]
[1740437358754,0.59,92901.0,92900.0,20.40611892]
[1740437358993,5.302116,92901.0,92900.0,20.40611892]
[1740437359226,5.42070411,92901.0,92900.0,20.40611892]
[1740437359445,5.42349753,92901.0,92900.0,20.40611892]
[1740437359676,5.38690431,92901.0,92900.0,20.40611892]
[1740437360158,5.42392989,92901.0,92900.0,20.40611892]
[1740437360435,5.4611672,92901.0,92900.0,20.40611892]
[1740437360928,5.33517809,92901.0,92900.0,20.40611892]
[1740437361164,5.37617764,92901.0,92900.0,20.40611892]
[1740437361640,5.41277086,92901.0,92900.0,20.40611892]
[1740437362311,5.37617764,92901.0,92900.0,20.40611892]
[1740437362570,5.42609086,92901.0,92900.0,20.40611892]
[1740437363053,1.19601786,92901.0,92900.0,20.40611892]
[1740437363305,1.17274464,92901.0,92900.0,20.40696952]
[1740437363551,5.47458844,92901.0,92900.0,20.40696952]
[1740437363795,5.68314871,92901.0,92900.0,20.40696952]
[1740437364032,5.51964071,92901.0,92900.0,20.40696952]
[1740437364284,5.24384971,92901.0,92900.0,20.40696952]
[1740437364770,5.24384971,92901.0,92900.0,20.32145952]
[1740437364771,5.17293694,92901.0,92900.0,20.32145952]
[1740437365017,5.17293694,92901.0,92900.0,20.32045952]
[1740437365018,2.36675294,92901.0,92900.0,20.32045952]
[1740437365262,2.04197094,92901.0,92900.0,20.32045952]
[1740437365497,2.05263067,92901.0,92900.0,20.32045952]
[1740437365755,2.03263067,92901.0,92900.0,20.32045952]
[1740437365988,2.18263067,92901.0,92900.0,20.26668902]
[1740437366200,2.1624116,92901.0,92900.0,20.26668902]
[1740437366415,2.3238736,92901.0,92900.0,20.26668902]
[1740437366641,2.3638736,92901.0,92900.0,20.26668902]
[1740437366910,2.3638736,92901.0,92900.0,20.21243209]
[1740437367126,2.38389614,92901.0,92900.0,20.21243209]
[1740437367596,2.42489569,92901.0,92900.0,20.21243209]
[1740437368560,2.41652973,92901.0,92900.0,20.21243209]
[1740437369436,2.44892073,92901.0,92900.0,20.21243209]
[1740437370365,2.41628714,92901.0,92900.0,20.21243209]
[1740437370687,2.39628714,92901.0,92900.0,20.19300225]
[1740437370929,2.4045037,92901.0,92900.0,20.16062583]
[1740437371386,2.12352224,92901.0,92900.0,20.16062583]
[1740437371866,3.17734924,92901.0,92900.0,20.16062583]
[1740437372111,3.08625024,92901.0,92900.0,20.16062583]
[1740437373725,0.86838124,92901.0,92900.0,20.16062583]
[1740437373933,3.16314086,92901.0,92900.0,20.11205089]
[1740437374813,3.19575914,92901.0,92900.0,20.11205089]
[1740437375027,0.91972615,92901.0,92900.0,20.07805789]
[1740437375242,0.88710787,92901.0,92900.0,20.07805789]
[1740437375434,0.87378787,92901.0,92900.0,20.07805789]
[1740437375607,0.88710787,92901.0,92900.0,20.07805789]
[1740437375809,0.91972856,92901.0,92900.0,20.07805789]
[1740437376251,0.88710787,92901.0,92900.0,20.07805789]
[1740437376455,0.91973962,92901.0,92900.0,20.07805789]
[1740437376653,3.34223162,92901.0,92900.0,20.07805789]
[1740437377065,3.07963731,92901.0,92900.0,20.07805789]
[1740437377239,3.03323456,92901.0,92900.0,20.07805789]
[1740437377453,0.88710787,92901.0,92900.0,19.50616489]
[1740437377804,2.71853087,92901.0,92900.0,19.50616489]
[1740437378125,2.71853087,92901.0,92900.0,19.20045889]
[1740437378791,0.88710787,92901.0,92900.0,18.61223289]
[1740437379241,2.05538933,92901.0,92900.0,17.65479135]
[1740437379511,2.09198255,92901.0,92900.0,16.50526835]
[1740437379718,2.09198255,92901.0,92900.0,15.42575262]
[1740437380144,2.05538933,92901.0,92900.0,15.42575262]
[1740437380816,2.09638888,92901.0,92900.0,13.99336862]
[1740437381027,2.1329821,92901.0,92900.0,13.62130962]
[1740437381278,2.16841578,92901.0,92900.0,13.62130962]
[1740437381484,4.07306501,92901.0,92900.0,13.62130962]
[1740437381717,3.61771802,92901.0,92900.0,13.62130962]
[1740437381925,3.59771802,92901.0,92900.0,13.62130962]
[1740437382177,3.32445802,92901.0,92900.0,13.69680962]
[1740437384023,2.23715802,92901.0,92900.0,13.69680962]
[1740437384756,3.00499502,92901.0,92900.0,13.62130962]
[1740437384977,2.93416902,92901.0,92900.0,13.62130962]
[1740437385452,2.86894718,92901.0,92900.0,13.58380451]
[1740437385667,2.66526118,92901.0,92900.0,13.58380451]
[1740437385909,1.00363118,92901.0,92900.0,13.58380451]
[1740437386103,1.00363118,92901.0,92900.0,12.09615351]
[1740437386350,0.99597849,92901.0,92900.0,12.09615351]
[1740437386577,0.98265849,92901.0,92900.0,12.09615351]
[1740437386781,3.74826687,92901.0,92900.0,12.09615351]
[1740437387013,3.41403246,92901.0,92900.0,12.09615351]
[1740437387272,2.89426046,92901.0,92900.0,12.09615351]
[1740437387498,2.62779046,92901.0,92900.0,12.09615351]
[1740437387666,3.84848825,92901.0,92900.0,12.09064384]
[1740437387882,3.01713825,92901.0,92900.0,12.09064384]
[1740437388086,0.98160125,92901.0,92900.0,12.09064384]
[1740437388292,3.48523225,92901.0,92900.0,12.09064384]
[1740437388515,3.48258466,92901.0,92900.0,12.09064384]
[1740437388708,3.22030997,92901.0,92900.0,12.09064384]
[1740437388905,2.79698597,92901.0,92900.0,12.09064384]
[1740437389109,2.77698597,92901.0,92900.0,12.09064384]
[1740437389315,3.21881035,92901.0,92900.0,12.09064384]
[1740437389514,2.86523635,92901.0,92900.0,12.09064384]
[1740437389834,2.58481435,92901.0,92900.0,12.09064384]
[1740437390027,2.57149435,92901.0,92900.0,12.09064384]
[1740437390228,2.36703735,92901.0,92900.0,12.09064384]
[1740437390403,2.38703735,92901.0,92900.0,12.09064384]
[1740437390605,2.36703735,92901.0,92900.0,12.09064384]
[1740437390804,0.99858735,92901.0,92900.0,12.09064384]
[1740437391230,3.67717276,92901.0,92900.0,12.09064384]
[1740437391565,3.67982035,92901.0,92900.0,12.09064384]
[1740437391793,3.13375235,92901.0,92900.0,12.09064384]
[1740437392017,2.59828135,92901.0,92900.0,12.09064384]
[1740437392221,2.51027135,92901.0,92900.0,12.09064384]
[1740437392456,2.42278935,92901.0,92900.0,12.09064384]
[1740437393449,2.53588935,92901.0,92900.0,12.09064384]
[1740437393667,1.11168735,92901.0,92900.0,11.16957584]
[1740437394120,1.14831528,92901.0,92900.0,11.16957584]
[1740437396131,1.14591528,92901.0,92900.0,11.16957584]
[1740437396579,1.14591528,92901.0,92900.0,10.60003384]
[1740437397033,1.14591528,92901.0,92900.0,10.30568048]
[1740437399892,1.17336534,92901.0,92900.0,9.37239148]
[1740437400165,1.17336534,92901.0,92900.0,9.07278448]
[1740437401527,1.15336534,92901.0,92900.0,8.48232948]
[1740437401749,1.15336534,92901.0,92900.0,7.86093248]
[1740437401991,1.17336534,92901.0,92900.0,7.55395948]
[1740437402374,1.16188896,92901.0,92900.0,6.72352067]
[1740437402622,1.16188896,92901.0,92900.0,6.32449967]
[1740437403407,1.16188896,92901.0,92900.0,5.39218867]
[1740437403612,1.12314715,92901.0,92900.0,4.84242167]
[1740437403787,1.13646715,92901.0,92900.0,4.84242167]
[1740437404596,1.10314715,92901.0,92900.0,4.84242167]
[1740437404792,2.70977015,92901.0,92900.0,4.84242167]
[1740437404991,2.43335015,92901.0,92900.0,4.84242167]
[1740437405238,2.41922009,92901.0,92900.0,4.84242167]
[1740437405791,2.55590009,92901.0,92900.0,4.84242167]
[1740437406026,2.56922009,92901.0,92900.0,4.84242167]
[1740437406464,2.55590009,92901.0,92900.0,4.84242167]
[1740437406663,2.56922009,92901.0,92900.0,4.84242167]
[1740437408005,2.38590009,92901.0,92900.0,4.84242167]
[1740437408227,2.02443809,92901.0,92900.0,4.92032167]
[1740437408456,2.02443809,92901.0,92900.0,4.96732167]
[1740437408457,0.603747,92901.0,92900.0,4.96732167]
[1740437408662,0.64999906,92901.0,92900.0,4.96732167]
[1740437408883,0.59768069,92901.0,92900.0,4.96732167]
[1740437409308,0.04393369,92901.0,92900.0,4.96200735]
[1740437409510,0.01332,92921.0,92901.0,0.077]
[1740437409736,0.01167434,92921.0,92920.0,0.08478035]
[1740437409963,0.01024347,92921.0,92920.0,0.08478035]
[1740437410171,0.01024347,92921.0,92920.0,0.16178035]
[1740437410407,0.18304737,92921.0,92920.0,0.20978035]
[1740437410627,0.03469237,92921.0,92920.0,0.20978035]
[1740437411055,0.00231837,92921.0,92920.0,0.20978035]
[1740437411274,0.03468837,92921.0,92920.0,0.20978035]
[1740437411488,0.0115846,92923.0,92920.0,0.20978035]
[1740437411728,0.0117012,92934.0,92921.0,0.0758]
[1740437411961,0.0117012,92934.0,92933.0,0.14853226]
[1740437412577,0.01328,92965.0,92934.0,0.1228]
[1740437412799,0.161325,92980.0,92964.0,0.16174619]
[1740437413022,1.4311127,92979.0,92978.0,0.08594619]
[1740437413252,1.23543216,92979.0,92978.0,0.08594619]
[1740437413485,1.21826216,92979.0,92978.0,0.08594619]
[1740437413704,1.04346316,92979.0,92978.0,0.08594619]
[1740437413933,0.22699677,92979.0,92978.0,0.08594619]
[1740437414145,0.04594951,92979.0,92978.0,0.08594619]
[1740437414417,0.00210387,92979.0,92978.0,0.15742942]
[1740437414651,0.01131501,92984.0,92978.0,0.15742942]
[1740437414859,0.014978,92990.0,92978.0,0.15742942]
[1740437415099,0.014978,92990.0,92989.0,0.34416559]
[1740437415302,0.0017004,92991.0,92989.0,0.34416559]
[1740437415527,0.0016982,92994.0,92989.0,0.34416559]
[1740437415528,0.014978,92990.0,92989.0,0.34416559]
[1740437415771,0.09092369,93002.0,92989.0,0.36987062]
[1740437415997,0.0017,93003.0,93001.0,0.34172581]
[1740437416231,0.613143,93002.0,93001.0,0.34172581]
[1740437416689,0.62466468,93002.0,93001.0,0.34172581]
[1740437416927,0.29797968,93002.0,93001.0,0.34172581]
[1740437417155,0.29841258,93002.0,93001.0,0.34172581]
[1740437417385,0.0004329,93002.0,93001.0,0.34172581]
[1740437418623,0.01201989,93002.0,93001.0,0.34172581]
[1740437420000,0.0004329,93002.0,93001.0,0.34172581]
[1740437420222,0.0004329,93002.0,93001.0,0.35341135]
[1740437420446,0.0004329,93002.0,93001.0,0.34172581]
[1740437421108,0.032341,93012.0,93002.0,0.0095]
[1740437421331,0.032341,93012.0,93011.0,0.34416559]
[1740437421769,0.0016982,93014.0,93011.0,0.34416559]
[1740437421770,0.0016982,93014.0,93011.0,0.34896559]
[1740437422026,0.992297,93013.0,93011.0,0.34896559]
[1740437422291,0.15,93012.0,93011.0,0.34896559]
[1740437422972,0.0016982,93014.0,93011.0,0.34896559]
[1740437423182,0.032332,93025.0,93011.0,0.34896559]
[1740437423392,0.01328,93042.0,93024.0,0.34416559]
[1740437423812,0.032332,93026.0,93024.0,0.34416559]
[1740437424016,0.09425316,93051.0,93024.0,0.34416559]
[1740437424230,0.01152499,93033.0,93024.0,0.34416559]
[1740437425701,0.01152499,93033.0,93024.0,0.34316559]
[1740437425913,0.032327,93037.0,93025.0,0.03431656]
[1740437426119,0.032327,93037.0,93026.0,0.16274973]
[1740437426355,0.15,93051.0,93026.0,0.08280473]
[1740437426575,0.01328,93066.0,93050.0,0.34416559]
[1740437426808,0.01328,93066.0,93065.0,0.33101422]
[1740437427245,0.01328,93076.0,93065.0,0.33101422]
[1740437427460,0.03232,93066.0,93065.0,0.33101422]
[1740437427693,0.0001299,93066.0,93065.0,0.33101422]
[1740437431019,0.0017006,93084.0,93065.0,0.65341422]
[1740437431249,0.0017006,93084.0,93083.0,0.42372242]
[1740437431690,0.0017006,93084.0,93083.0,0.44447977]
[1740437432099,0.0017006,93084.0,93083.0,0.60562577]
[1740437432317,0.0017002,93097.0,93087.0,0.161139]
[1740437432760,0.0017002,93097.0,93083.0,0.55102546]
[1740437432973,0.0017002,93097.0,93087.0,0.161139]
[1740437433195,0.0017002,93097.0,93095.0,0.161125]
[1740437433414,0.004306,93114.0,93106.0,0.1600504]
[1740437433634,0.01117945,93132.0,93106.0,0.77071464]
[1740437433865,0.00183142,93121.0,93120.0,0.34416559]
[1740437434097,0.00183142,93121.0,93120.0,0.41617005]
[1740437434324,0.00183142,93121.0,93120.0,0.34416559]
[1740437434789,0.00183142,93121.0,93120.0,0.50524759]
[1740437435012,0.00183142,93121.0,93120.0,0.93029328]
[1740437435249,0.00183142,93121.0,93120.0,1.46779328]
[1740437435469,0.00183142,93121.0,93120.0,0.82764759]
[1740437435691,0.00183142,93121.0,93120.0,0.76921128]
[1740437435903,0.00183142,93121.0,93120.0,0.66656559]
[1740437436321,0.00183142,93121.0,93120.0,0.34416559]
[1740437436542,0.50920742,93121.0,93106.0,0.34416559]
[1740437436753,0.15,93119.0,93106.0,0.34416559]
[1740437436951,0.15,93117.0,93106.0,0.34416559]
[1740437437172,0.15,93115.0,93106.0,0.34416559]
[1740437437410,0.15,93113.0,93106.0,0.34416559]
[1740437437638,0.214788,93115.0,93106.0,0.34416559]
[1740437437639,0.15,93111.0,93106.0,0.34416559]
[1740437437872,0.15,93109.0,93106.0,0.34416559]
[1740437438318,0.0031036,93108.0,93106.0,0.34416559]
[1740437438958,0.128731,93107.0,93106.0,0.34416559]
[1740437439171,0.15,93113.0,93106.0,0.34416559]
[1740437439386,2.049937,93114.0,93106.0,0.34416559]
[1740437439387,0.15,93107.0,93106.0,0.34416559]
[1740437439601,0.3166156,93107.0,93106.0,0.34416559]
[1740437439812,0.3111826,93107.0,93106.0,0.34416559]
[1740437441098,0.15,93106.0,93097.0,0.24172]
[1740437441340,1.998983,93106.0,93097.0,0.24172]
[1740437441571,0.15,93104.0,93097.0,0.24172]
[1740437441788,0.15,93102.0,93097.0,0.24172]
[1740437441996,0.454321,93101.0,93097.0,0.24172]
[1740437442219,0.4015005,93101.0,93097.0,0.24172]
[1740437442438,0.113141,93100.0,93097.0,0.24172]
[1740437442647,0.145446,93100.0,93097.0,0.24172]
[1740437442874,0.20550872,93099.0,93097.0,0.24172]
[1740437443090,0.19036,93098.0,93097.0,0.24172]
[1740437443306,0.18792134,93098.0,93097.0,0.24172]
[1740437443732,0.16311206,93098.0,93097.0,0.24172]
[1740437443969,0.16311206,93098.0,93088.0,0.08593142]
[1740437444187,0.380116,93097.0,93088.0,0.08593142]
[1740437444426,0.15,93096.0,93088.0,0.08593142]
[1740437444642,1.25112948,93095.0,93088.0,0.08593142]
[1740437444861,1.25112948,93095.0,93070.0,0.24164]
[1740437444862,0.15,93091.0,93070.0,0.24164]
[1740437445079,0.15,93089.0,93070.0,0.24164]
[1740437445344,0.15,93083.0,93070.0,0.24164]
[1740437445548,0.15,93081.0,93070.0,0.24164]
[1740437445803,0.15,93079.0,93070.0,0.24164]
[1740437445945,0.999256,93078.0,93070.0,0.24164]
[1740437446153,0.9000212,93078.0,93070.0,0.24207282]
[1740437446434,0.15,93071.0,93070.0,0.24207282]
[1740437446571,0.798003,93071.0,93070.0,0.24207282]
[1740437446955,1.23344372,93071.0,93070.0,0.00043282]
[1740437447182,0.35979872,93071.0,93070.0,0.00043282]
[1740437447586,2.34343672,93071.0,93070.0,0.00043282]
[1740437447803,0.15,93068.0,93026.0,0.08593142]
[1740437448045,0.15,93066.0,93041.0,0.08606132]
[1740437448224,2.904713,93065.0,93041.0,0.08606132]
[1740437448458,0.15,93045.0,93041.0,0.08606132]
[1740437448677,0.746646,93044.0,93041.0,0.08606132]
[1740437448905,0.161217,93042.0,93041.0,0.08606132]
[1740437449117,2.05247,93042.0,93041.0,0.0001299]
[1740437449350,1.29295775,93042.0,93041.0,0.0001299]
[1740437449783,0.54511275,93042.0,93041.0,0.0001299]
[1740437450008,0.48419175,93042.0,93041.0,0.0001299]
[1740437450254,0.64540875,93042.0,93041.0,0.0001299]
[1740437450465,0.79540875,93042.0,93041.0,0.0001299]
[1740437451102,0.84100875,93042.0,93041.0,0.0001299]
[1740437456197,0.85424875,93042.0,93041.0,0.0001299]
[1740437457633,0.37310275,93042.0,93041.0,0.0001299]
[1740437457851,2.04043575,93042.0,93041.0,0.0001299]
[1740437458529,0.15,93033.0,93025.0,0.24164]
[1740437458769,0.15,93031.0,93025.0,0.24164]
[1740437459026,0.15,93029.0,93025.0,0.24153085]
[1740437459292,0.15,93027.0,93025.0,0.24153085]
[1740437459517,0.908009,93026.0,93025.0,0.24153085]
[1740437459774,1.305628,93026.0,93025.0,0.24153085]
[1740437460001,1.358489,93026.0,93025.0,0.24153085]
[1740437460235,0.161247,93025.0,93017.0,0.08593142]
[1740437460457,1.304141,93025.0,93017.0,0.08606147]
[1740437460686,0.2275,93023.0,92988.0,0.08593142]
[1740437460913,0.15,93000.0,92988.0,0.08593142]
[1740437461196,0.15,92998.0,92988.0,0.08593142]
[1740437461454,0.15,92996.0,92988.0,0.08593142]
[1740437461694,0.223792,92995.0,92988.0,0.08593142]
[1740437461966,0.18533141,92995.0,92988.0,0.08593142]
[1740437462193,0.167865,92994.0,92988.0,0.08593142]
[1740437462639,0.131021,92994.0,92988.0,0.08636432]
[1740437462906,0.00298707,92993.0,92988.0,0.08636432]
[1740437463143,0.151601,92995.0,92988.0,0.08636432]
[1740437463372,0.00297397,92992.0,92988.0,0.08636432]
[1740437463589,0.15,92990.0,92988.0,0.08636432]
[1740437463800,0.15,92990.0,92988.0,0.08624126]
[1740437464017,0.312339,92989.0,92988.0,0.08624126]
[1740437464226,0.31852897,92989.0,92988.0,0.08624126]
[1740437465313,0.31852897,92989.0,92988.0,0.08612897]
[1740437465533,0.15297397,92989.0,92988.0,0.08612897]
[1740437466126,0.26163897,92989.0,92988.0,0.08612897]
[1740437466839,0.15297397,92989.0,92988.0,0.08612897]
[1740437467499,0.00297397,92989.0,92988.0,0.08612897]
[1740437467720,0.00297397,92989.0,92988.0,0.25755818]
[1740437467946,0.032343,92999.0,92998.0,0.161293]
[1740437468175,0.01449258,93009.0,93005.0,0.16128]
[1740437468383,0.01324,93032.0,93008.0,0.08593142]
[1740437468621,0.257463,93031.0,93028.0,0.08593142]
[1740437468866,0.13935316,93040.0,93028.0,0.08593142]
[1740437469121,0.00287104,93030.0,93028.0,0.08593142]
[1740437469393,0.032331,93031.0,93028.0,0.08593142]
[1740437469847,0.00288354,93030.0,93028.0,0.08593142]
[1740437470739,0.03246075,93031.0,93028.0,0.08593142]
[1740437471073,0.00289392,93030.0,93028.0,0.08593142]
[1740437471268,0.03246075,93031.0,93028.0,0.08593142]
[1740437471493,0.03246075,93031.0,93028.0,0.08582755]
[1740437472582,0.00012975,93031.0,93030.0,0.161238]
[1740437472791,0.00012975,93031.0,93030.0,0.16113847]
[1740437473877,0.00012975,93031.0,93030.0,0.60618416]
[1740437475013,0.259932,93096.0,93039.0,0.02]
[1740437475228,0.01403118,93066.0,93065.0,0.161177]
[1740437475454,0.01442635,93079.0,93065.0,0.0161177]
[1740437475668,0.00347189,93082.0,93066.0,0.00150398]
[1740437475911,0.00347189,93082.0,93081.0,0.161149]
[1740437476597,0.032305,93093.0,93091.0,0.161132]
[1740437476828,0.000848,93119.0,93091.0,0.161132]
[1740437477268,0.032302,93098.0,93097.0,0.161122]